Cogmind - Beta 11.1 @@@ ROGUE MODE // 2022.06.01 @ 10:36:18 Player: Triffids Result: Self-destructed Performance ------------- Evolutions (3) 1500 Regions Visited (6) 1200 Robots Destroyed (56) 280 Value Destroyed (1397) 1397 Prototype IDs (27) 540 Alien Tech Used (0) 0 Bonus (326) 326 TOTAL SCORE: 5243 Bonus ------- High Alert Combat Kills 26 Aligned with FarCom 300 Cogmind --------- Core Integrity 545/700 Matter 151/300 Energy 261/290 System Corruption 0% Temperature Warning (304) Movement Walking (120) Location -7/Factory Parts ------- > --- POWER (1) -------- Improved Deuterium Engine > --- PROPULSION (3) --- Aluminum Leg Improved Carbon-fiber Leg > --- UTILITY (5) ------ 0b10 Alert Chip Hacking Suite > --- WEAPON (4) ------- Heavy Laser Improved Assault Rifle Improved Assault Rifle > --- INVENTORY (5) ---- Light Deuterium Engine Improved Heat Sink Improved Light Armor Plating Heavy Laser Advanced Assault Cannon Peak State ------------ > --- POWER ------------ Improved Deuterium Engine > --- PROPULSION ------- Aluminum Leg Aluminum Leg Improved Carbon-fiber Leg > --- UTILITY ---------- 0b10 Alert Chip Improved Light Armor Plating Hacking Suite Bomb Drone Bay > --- WEAPON ----------- Heavy Laser Improved Assault Rifle Improved Assault Rifle Improved Assault Rifle > --- INVENTORY -------- Light Deuterium Engine Light Nuclear Core Improved Light Armor Plating Heavy Laser Advanced Assault Cannon [Rating: 50] Favorites ----------- Power Improved Ion Engine Engine Improved Ion Engine Power Core Light Nuclear Core Propulsion Aluminum Leg Leg Aluminum Leg Utility Small Storage Unit Device Bomb Drone Bay Storage Small Storage Unit Processor 0b10 Alert Chip Hackware Hacking Suite Protection Light Armor Plating Weapon Improved Assault Rifle Energy Gun Medium Laser Energy Cannon Latent Energy Streamer Ballistic Gun Improved Assault Rifle Build | -11 -10 -10 -10 -9 -8 -7 ------- Run | Scr Mat Min Exi Min Mat Fac Slots Evolved 6 | . . . . . 4 2 Power . | . . . . . . . Propulsion 1 | . . . . . 1 . Utility 3 | . . . . . 2 1 Weapon 2 | . . . . . 1 1 Parts Attached 36 | 6 9 . 4 . 6 11 Power 5 | 1 1 . . . 1 2 Engine 4 | 1 1 . . . 1 1 Core 1 | . . . . . . 1 Reactor . | . . . . . . . Propulsion 9 | 2 3 . 1 . 1 2 Treads . | . . . . . . . Leg 9 | 2 3 . 1 . 1 2 Wheel . | . . . . . . . Hover . | . . . . . . . Flight . | . . . . . . . Utility 11 | 1 2 . 1 . 3 4 Device 4 | . 2 . . . 2 . Storage 1 | 1 . . . . . . Processor 2 | . . . 1 . . 1 Hackware 2 | . . . . . . 2 Protection 2 | . . . . . 1 1 Artifact . | . . . . . . . Weapon 11 | 2 3 . 2 . 1 3 Energy Gun 5 | 1 1 . . . 1 2 Energy Cannon 1 | . . . 1 . . . Ballistic Gun 5 | 1 2 . 1 . . 1 Ballistic Cannon . | . . . . . . . Launcher . | . . . . . . . Special Weapon . | . . . . . . . Impact Weapon . | . . . . . . . Slashing Weapon . | . . . . . . . Piercing Weapon . | . . . . . . . Special Melee Weapon . | . . . . . . . Unidentified Prototypes 3 | . 1 . 1 . 1 . Parts Lost 6 | . . . . . . 6 Power . | . . . . . . . Propulsion 2 | . . . . . . 2 Utility 3 | . . . . . . 3 Weapon 1 | . . . . . . 1 Highest Loss Streak 4 | . . . . . . 4 To Critical Strikes . | . . . . . . . Average Slot Usage (%) 93 | . 95 100 94 100 87 89 Engine 10 | . 14 14 14 14 9 4 Leg 26 | . 28 28 28 28 24 22 Device 8 | . 10 14 8 . 10 6 Storage 8 | . 14 14 14 14 2 . Processor 6 | . . . 5 14 9 9 Hackware 1 | . . . . . . 7 Protection 1 | . . . . . 5 3 Energy Gun 4 | . 8 . . . 9 7 Ballistic Gun 22 | . 19 28 22 28 18 22 Naked Turns . | . . . . . . . Heaviest Build 34 | 13 19 19 26 18 28 34 Greatest Support 38 | 20 20 20 20 20 30 38 Greatest Overweight (x) 1 | 1 . . 1 . 1 . Average Overweight (x) . | . . . . . . . Largest Inventory Capacity 8 | 8 8 8 8 8 8 5 Average Capacity 6 | 7 8 8 8 8 5 5 Most Carried 8 | 5 8 8 8 8 6 5 Average Carried 6 | 3 6 7 7 7 4 4 Final Capacity 8 | 8 8 8 8 8 5 5 Final Carried 8 | 2 8 8 7 8 5 5 Class Distribution -------------------- 60% | Mutant 27% | Skirmisher 10% | Scavenger-Skirmisher Dominant Class ---------------- Mutant | -10/Materials Mutant | -10/Mines Mutant | -10/Exiles Mutant | -9/Mines Skirmisher | -8/Materials Scavenger-Skirmisher | -7/Factory Resources | -11 -10 -10 -10 -9 -8 -7 ----------- Run | Scr Mat Min Exi Min Mat Fac Matter Collected 1020 | 200 279 24 . 118 228 171 Remotely . | . . . . . . . Salvage Created 1443 | . 304 69 . 125 375 570 Parts 104 | . 26 9 . 15 20 34 Haulers Intercepted 3 | . 1 . . . 1 1 Recyclers Shooed 2 | . . . . . 1 1 Parts Field Recycled . | . . . . . . . Retrieved Matter . | . . . . . . . Parts Self-Destructed . | . . . . . . . Prevented . | . . . . . . . Kills | -11 -10 -10 -10 -9 -8 -7 ------- Run | Scr Mat Min Exi Min Mat Fac Combat Hostiles Destroyed 45 | . 8 5 . 8 11 13 Guns 42 | . 8 5 . 8 11 10 AOE 3 | . . . . . . 3 Classes Destroyed 9 | . 5 . . . 2 2 Worker 2 | . 1 . . . . 1 Builder 1 | . . . . . . 1 Hauler 3 | . 1 . . . 1 1 Recycler 2 | . . . . . . 2 Operator 2 | . . . . . 1 1 Watcher 1 | . 1 . . . . . Swarmer 30 | . 4 5 . 8 5 8 Grunt 8 | . 4 . . . 4 . Sentry 7 | . . . . . 2 5 Best Kill Streak 9 | . 4 5 . 4 3 9 Combat Bots Only 5 | . 4 5 . 4 3 4 Max Kills in Single Turn 7 | . 1 1 . 2 1 7 Gunslinging 1 | . . . . 1 . . Exploded 3 | . . . . . . 3 Melee . | . . . . . . . Uniques/NPCs Destroyed . | . . . . . . . Combat | -11 -10 -10 -10 -9 -8 -7 -------- Run | Scr Mat Min Exi Min Mat Fac Damage Taken 2040 | . 349 45 . 127 336 1183 Core 318 | . 80 10 . 21 52 155 Absorbed by Shields . | . . . . . . . Core Remaining (%) 81 | 100 . . . 55 90 . Volleys Fired 99 | . 25 7 . 10 28 29 Largest 4 | . 2 2 . 2 3 4 Hottest 138 | . 70 46 . 46 96 138 Shots Fired 274 | . 50 14 . 20 84 106 Gun 274 | . 50 14 . 20 84 106 Cannon . | . . . . . . . Launcher . | . . . . . . . Special . | . . . . . . . Kinetic 213 | . 43 14 . 20 56 80 Thermal 61 | . 7 . . . 28 26 Explosive . | . . . . . . . Electromagnetic . | . . . . . . . Robot Hit Streak 12 | . 12 4 . 3 7 12 Robot Miss Streak 4 | . 2 1 . 2 4 3 Penetration Max . | . . . . . . . Secondary Targets 11 | . 3 . . 2 1 5 Max Gunslinging Chain 1 | . 1 . . 1 1 1 Shots Hit Robots 181 | . 38 9 . 11 52 71 Core Hits 84 | . 13 5 . 8 24 34 Critical Kills . | . . . . . . . Critical Parts Destroyed . | . . . . . . . Critical Strikes 3 | . 1 . . . 2 . Burn 3 | . 1 . . . 2 . Melee Attacks . | . . . . . . . Impact . | . . . . . . . Slashing . | . . . . . . . Piercing . | . . . . . . . Sneak Attacks . | . . . . . . . Combat Hostiles . | . . . . . . . Follow-up Attacks . | . . . . . . . Damage Inflicted 3663 | . 554 141 . 231 759 1978 Guns 2838 | . 554 141 . 231 759 1153 Cannons . | . . . . . . . Explosions 825 | . . . . . . 825 Melee . | . . . . . . . Ramming . | . . . . . . . Kinetic 2253 | . 497 141 . 231 543 841 Thermal 585 | . 57 . . . 216 312 Explosive 825 | . . . . . . 825 Electromagnetic . | . . . . . . . Impact . | . . . . . . . Slashing . | . . . . . . . Piercing . | . . . . . . . Highest Corruption . | . . . . . . . Average Corruption . | . . . . . . . Corruption Purged . | . . . . . . . Corruption Blocked . | . . . . . . . Overload Shots . | . . . . . . . Overflow Damage 6 | . . . . . . 6 Projectiles . | . . . . . . . Explosions 6 | . . . . . . 6 Melee . | . . . . . . . Knockbacks . | . . . . . . . Impact . | . . . . . . . Kinetic . | . . . . . . . Secondary . | . . . . . . . Self-Inflicted Damage . | . . . . . . . Shots . | . . . . . . . Rammed . | . . . . . . . Targets Rammed . | . . . . . . . Kicked . | . . . . . . . Crushed . | . . . . . . . Highest Temperature 304 | . 38 . . . 233 304 Average Temperature 71 | . 19 . . . 63 91 Received Heat Transfer 444 | . 114 . . . 126 204 Effects 2 | . . . . . . 2 Energy Bleed 2 | . . . . . . 2 Siege Activations . | . . . . . . . Robots Corrupted . | . . . . . . . Combat Hostiles . | . . . . . . . Parts Fried . | . . . . . . . Impact Corruptions . | . . . . . . . Robots Melted . | . . . . . . . Combat Hostiles . | . . . . . . . Parts Melted 2 | . . . . . 1 1 Heat Transferred 1629 | . 223 . . . 777 629 Parts Sabotaged . | . . . . . . . Parts Stolen . | . . . . . . . Parts Stripped . | . . . . . . . Power Chain Reactions . | . . . . . . . Missiles Intercepted . | . . . . . . . Alert | -11 -10 -10 -10 -9 -8 -7 ------- Run | Scr Mat Min Exi Min Mat Fac Peak Influence 428 | . 273 170 . 156 184 428 Initial 44 | . . 28 . . . 44 Average 97 | . 119 139 . 77 55 119 Maximum Alert Level 2 | . 1 . . . . 2 Low Security (%) 94 | 100 83 100 . 100 100 87 Level 1 4 | . 16 . . . . 6 Level 2 1 | . . . . . . 6 Level 3 . | . . . . . . . Level 4 . | . . . . . . . Level 5 . | . . . . . . . High Security . | . . . . . . . Max Security . | . . . . . . . Squads Dispatched 5 | . 2 . . . 2 1 Investigation 1 | . 1 . . . . . Extermination 1 | . . . . . . 1 Reinforcement 2 | . 1 . . . 1 . Assault . | . . . . . . . Garrison 1 | . . . . . 1 . Intercept . | . . . . . . . Searches Triggered . | . . . . . . . Construction Impeded . | . . . . . . . Haulers Reinforced . | . . . . . . . Active Scanning Responses . | . . . . . . . Cargo Convoy Interrupts . | . . . . . . . Stealth | -11 -10 -10 -10 -9 -8 -7 --------- Run | Scr Mat Min Exi Min Mat Fac Distress Signals . | . . . . . . . Communications Jammed . | . . . . . . . Distress Signals . | . . . . . . . Times Spotted 57 | . 14 5 . 7 14 17 Peak Tracking Total 5 | . 5 3 . 4 4 4 Tactical Retreats 3 | . . 1 . . 1 1 Traps | -11 -10 -10 -10 -9 -8 -7 ------- Run | Scr Mat Min Exi Min Mat Fac Traps Triggered 1 | . 1 . . . . . Indirectly . | . . . . . . . Trap Hack Attempts . | . . . . . . . Triggered . | . . . . . . . Disarmed . | . . . . . . . Reprogrammed . | . . . . . . . Reused . | . . . . . . . Traps Extracted . | . . . . . . . Installed . | . . . . . . . Triggered . | . . . . . . . Machines | -11 -10 -10 -10 -9 -8 -7 ---------- Run | Scr Mat Min Exi Min Mat Fac Machines Disabled 18 | . . . . . . 18 Max in Single Turn 11 | . . . . . . 11 Garrison Access 1 | . . . . . 1 . Machines Sabotaged . | . . . . . . . Garrisons Compromised . | . . . . . . . Overloaded Fab Kills . | . . . . . . . Hacking | -11 -10 -10 -10 -9 -8 -7 --------- Run | Scr Mat Min Exi Min Mat Fac Machines Accessed 15 | . 6 1 1 . 3 4 Terminals 10 | . 6 . . . 1 3 Fabricators . | . . . . . . . Repair Stations . | . . . . . . . Recycling Units 1 | . . . . . 1 . Scanalyzers 1 | . . . . . . 1 Garrison Access 1 | . . . . . 1 . Total Hacks 39 | . 17 1 1 . 8 12 Successful 28 | . 11 1 1 . 5 10 Failed 11 | . 6 . . . 3 2 Catastrophic 2 | . 2 . . . . . Database Lockouts . | . . . . . . . Manual 20 | . 9 . 1 . 6 4 Terminals 28 | . 17 . . . 5 6 Fabricators . | . . . . . . . Repair Stations . | . . . . . . . Recycling Units 2 | . . . . . 2 . Scanalyzers 6 | . . . . . . 6 Garrison Access 1 | . . . . . 1 . Terminal Hacks 13 | . 9 1 1 . . 2 Robot Analysis 3 | . 2 . . . . 1 Prototype ID Bank 1 | . 1 . . . . . Open Door 1 | . . 1 . . . . Emergency Access Points 1 | . 1 . . . . . Terminal Index 1 | . 1 . . . . . Locate Traps 4 | . 3 . . . . 1 Zone Layout 1 | . 1 . . . . . EX-Prototype ID Bank 1 | . . . 1 . . . Fabricator Hacks . | . . . . . . . Repair Station Hacks . | . . . . . . . Recycling Unit Hacks 1 | . . . . . 1 . Report Inventory 1 | . . . . . 1 . Scanalyzer 6 | . . . . . . 6 Insert Component 2 | . . . . . . 2 Analyze 4 | . . . . . . 4 Garrison Access Hacks 1 | . . . . . 1 . Seal Access 1 | . . . . . 1 . Unauthorized Hacks 7 | . 2 . . . 3 2 Terminals 6 | . 2 . . . 2 2 Assimilate 1 | . . . . . 1 . Botnet 4 | . 2 . . . 1 1 Disrupt 1 | . . . . . . 1 Fabricators . | . . . . . . . Repair Stations . | . . . . . . . Recycling Units 1 | . . . . . 1 . Monitor 1 | . . . . . 1 . Scanalyzers . | . . . . . . . Garrison Access . | . . . . . . . Data Cores Recovered 1 | . . . . . . 1 Used 1 | . . . . . . 1 Hacking Detections 11 | . 6 . . . 2 3 Full Trace Events . | . . . . . . . Feedback Events . | . . . . . . . Feedback Blocked . | . . . . . . . Robot Schematics Acquired . | . . . . . . . Robots Built . | . . . . . . . Authchips . | . . . . . . . Time . | . . . . . . . Total Robot Build Rating . | . . . . . . . Part Schematics Acquired 2 | . . . . . . 2 Parts Built . | . . . . . . . Authchips . | . . . . . . . Time . | . . . . . . . Total Part Build Rating . | . . . . . . . Parts Repaired . | . . . . . . . Time . | . . . . . . . Parts Recycled . | . . . . . . . Recycled Matter . | . . . . . . . Retrieved Matter . | . . . . . . . Retrieved Components . | . . . . . . . Parts Scanalyzed 2 | . . . . . . 2 Part Schematics Acquired 2 | . . . . . . 2 Parts Damaged . | . . . . . . . Bothacking | -11 -10 -10 -10 -9 -8 -7 ------------ Run | Scr Mat Min Exi Min Mat Fac Used RIF Installer . | . . . . . . . Robots Hacked . | . . . . . . . Non-combat . | . . . . . . . Combat . | . . . . . . . Robot Hacks Applied . | . . . . . . . Relay Couplers Released . | . . . . . . . Fabnet Peak Effective % . | . . . . . . . Robots Rewired . | . . . . . . . Allies Hacked . | . . . . . . . Hacks Repelled . | . . . . . . . Allies | -11 -10 -10 -10 -9 -8 -7 -------- Run | Scr Mat Min Exi Min Mat Fac Total Allies 2 | . . 1 . . 1 . Largest Group 1 | . . 1 . . 1 1 Highest-Rated Group 31 | . . 31 . . 10 10 Highest-Rated Ally 31 | . . 31 . . 10 10 Total Orders 5 | . . . . . 3 2 EXPLORE 5 | . . . . . 3 2 Ally Attacks 6 | . . 1 . . 3 2 Total Damage . | . . . . . . . Kills . | . . . . . . . Allies Corrupted . | . . . . . . . Allies Melted . | . . . . . . . Intel | -11 -10 -10 -10 -9 -8 -7 ------- Run | Scr Mat Min Exi Min Mat Fac Robot Analysis Total 3 | . 2 . . . . 1 Derelict Logs Recovered 2 | . . 2 . . . . Drone Launches 5 | . . . . . 3 2 Drone Recoveries . | . . . . . . . Exploration | -11 -10 -10 -10 -9 -8 -7 ------------- Run | Scr Mat Min Exi Min Mat Fac Turns Passed 2761 | 40 427 383 329 434 584 564 Spaces Moved 1776 | 32 264 295 264 325 268 328 Core 27 | 27 . . . . . . Treads . | . . . . . . . Legs 1749 | 5 264 295 264 325 268 328 Wheels . | . . . . . . . Hover . | . . . . . . . Flight . | . . . . . . . Fastest Speed 50 | 50 120 120 120 120 120 120 Average Speed 121 | 89 120 120 121 120 134 120 Slowest Speed 190 | 120 120 120 190 120 190 120 Overloaded Moves . | . . . . . . . Propulsion Burnouts . | . . . . . . . Robots Hopped . | . . . . . . . Cave-ins Triggered . | . . . . . . . Exploration Rate (%) 42 | 3 62 51 63 78 28 12 Regions Visited 6 Branch Regions 3 Pre-discovered Areas 1 | . . 1 . . . . Known Exits Taken 1 | . . . . . 1 . Unknown Exits Taken 5 | 1 1 1 1 1 . . Scrap Searched 1 | . . . . 1 . . Spaces Dug . | . . . . . . . Terrain Destroyed 55 | . . . . . . 55 Melee . | . . . . . . . Projectile . | . . . . . . . AOE 55 | . . . . . . 55 Terrain Rammed . | . . . . . . . Walls Destroyed . | . . . . . . . Machines Disabled . | . . . . . . . Actions | -11 -10 -10 -10 -9 -8 -7 --------- Run | Scr Mat Min Exi Min Mat Fac Total 2165 | 42 326 311 272 349 432 433 Wait 188 | . 9 5 . 14 116 44 Move 1770 | 31 263 294 263 324 267 328 Hop . | . . . . . . . Pick Up 35 | 5 10 2 2 1 6 9 Fast Attach 11 | 3 2 . . . 3 3 Attach 12 | 3 . . 1 . 2 6 Detach 6 | . 1 . . . 1 4 Swap 13 | . 7 . 3 . 1 2 Drop 31 | . 9 3 3 . 8 8 Fire 99 | . 25 7 . 10 28 29 Melee . | . . . . . . . Ram . | . . . . . . . Kick . | . . . . . . . Crush . | . . . . . . . Escape Stasis . | . . . . . . . Rewire . | . . . . . . . Trap . | . . . . . . . Miscellaneous . | . . . . . . . Route ------- -11/Scrapyard -10/Materials (discovered 3 exits: [*Mat] / *Min x2) -10/Mines -10/Exiles (discovered 2 exits: [*Min x2]) -9/Mines -8/Materials (discovered 2 exits: *Fac x2) -7/Factory History --------- Turn | Location | Event 14 | -11/Scrapyard | Discovered new exit (range 15) 41 | -11/Scrapyard | Entered Materials 312 | -10/Materials | Discovered new exit (range 11) 314 | -10/Materials | Build established: Mutant 438 | -10/Materials | Discovered new exit (range 4) 440 | -10/Materials | Discovered new exit (range 9) 468 | -10/Materials | Entered Mines 471 | -10/Mines | Received a Mining Laser from a helpful Derelict 479 | -10/Mines | Met a Derelict bent on vengeance 576 | -10/Mines | Learned location of Zion (-6) 683 | -10/Mines | Found the Drone Emporium 693 | -10/Mines | Found Prototype Device 815 | -10/Mines | Learned location of 1 exit from Materials 845 | -10/Mines | Deemed a non-threat by the Exiles lab entrance 845 | -10/Mines | Discovered new exit (range 5) 851 | -10/Mines | Entered Exiles 869 | -10/Exiles | Discovered new exit (range 15) 901 | -10/Exiles | Met 8R-AWN 920 | -10/Exiles | Met EX-HEX 961 | -10/Exiles | Met EX-BIN 977 | -10/Exiles | Aligned with FarCom system 979 | -10/Exiles | Given EX-Vault access code 1022 | -10/Exiles | Opened EX-Vault 1030 | -10/Exiles | Found Prototype Energy Cannon 1031 | -10/Exiles | Identified Latent Energy Streamer 1045 | -10/Exiles | Found 0b10 Alert Chip 1075 | -10/Exiles | Warned to stay clear of 0b10 Research branches 1082 | -10/Exiles | Exiles lab attacked by MAIN.C 1168 | -10/Exiles | Discovered new exit (range 11) 1180 | -10/Exiles | Left Exiles lab with 0b10 Alert Chip 1180 | -10/Exiles | Entered Mines 1223 | -9/Mines | Received a Rocket Launcher from a helpful Derelict 1325 | -9/Mines | Assembled infested the area 1606 | -9/Mines | Discovered new exit (range 6) 1614 | -9/Mines | Entered Materials 1614 | -8/Materials | Evolved 4 slots: Propulsion x1, Utility x2, Weapon x1 1614 | -8/Materials | Identified Bomb Drone Bay 1615 | -8/Materials | Identified exit to Factory 1816 | -8/Materials | Garrison activated, responded to threat 1907 | -8/Materials | Build established: Skirmisher 2190 | -8/Materials | Discovered exit to Factory (range 5) 2198 | -8/Materials | Entered Factory 2198 | -7/Factory | Accompanied by 1 ally 2198 | -7/Factory | Evolved 2 slots: Utility x1, Weapon x1 2762 | -7/Factory | Self-destructed Last Messages --------------- 02753_ K-01 Serf collects debris. 02753_ U-05 Engineer lays Concrete. 02754_ Overheating: Energy bleed (-34). 02754_ U-05 Engineer lays Concrete. 02756_ K-01 Serf collects debris. 02756_ U-05 Engineer lays Concrete. 02756_ K-01 Serf collects debris. 02757_ U-05 Engineer lays Concrete. 02757_ Bomb Drone Bay destroyed. 02757_ U-05 Engineer lays Concrete. 02759_ K-01 Serf collects debris. 02759_ Y-54 Guardian destroyed. 02759_ Switching to secondary target: P-60 Hacker. 02759_ U-05 Engineer lays Concrete. 02759_ U-05 Engineer builds a Wall. 02759_ U-05 Engineer lays Concrete. 02760_ K-01 Serf collects debris. 02760_ U-05 Engineer lays Concrete. 02762_ Overheating: Energy bleed (-29). 02762_ U-05 Engineer lays Concrete. Map ----- +----------------------------------------------------+ | ???????????# # """ """ #????#" # #??? | | ???????????# # """ """ #????#""""""""# #??? | | ???????????# # """ """ #??? " ##?#??? | | ???????????# # #?? ###?????? | | ???????????# # #?# #???????? | | ???????????# # #?# #???????? | | ???????????# ##############?# #???????? | | ???????????# # #?# #???????? | | ???????????# # #??? ????????? | | ???????????# # ]!! #????? ????????? | | ???????????# # ]!! #??????????????????? | | ???????????# + [ !! #??????????????????? | | ?????????? + # +??????????????????? | | ????????? # #""" """ #??????????????????? | | ???????? # #""F """ #??????????????????? | | ??????? ?# #"" """ #??????????????????? | | ?????? ?# #""" "" #??????????????????? | | ????# ??# #""" "" #####??????????????? | | ????+ ??# # ; #??????????????? | | ????# ???# ####+#### ;;;;####???????????? | | ????###????# #??# # #???????????? | | ???????????# #??# # #???????????? | | ???######## #### # #???????????? | | #### # ### #; #???????????? | | !!! #???????????? | | % t % %[@ #???????????? | | u =% #???????????? | | #???????????? | | k #???????????? | | ?## u ! ] p "?????????? | | ?# # ??????????? | | ?## u #???????????? | | ?## #############???????????? | | ?#"" k #???????????????????????? | | ?#"F" #??????????????????????? | | ?#" u #??????????????????????? | | ?#""" #??????????????????????? | | ?#""" ###??????????????????????? | | ?### ???????????????????????? | | ???# = a #???????????????????????? | | ???# #???????????????????????? | | ???## #####????????????????????? | | ????# ????????????? | | ????# ## ### ????????????? | | ????# # " # #?? ?????????????? | | ????# ### ### #??? ?????????????? | | ????# ###########+##??? ??????????????? | | ????# # #??? ??????????????? | | ????# # """ """ #?????? ????????????????? | | ????# # """ """ #??????? ##???????????????? | +----------------------------------------------------+ Best States ------------- Heat Dissipation 45 Energy Generation 16 Energy Capacity 290 Matter Stores 300 Matter Capacity 300 Sight Range 18 Robot Scan Range 14 Terrain Scan Density 10 Armor Coverage 150 Evasion (%) 55 Offensive Hacking 20 Item Schematics ----------------- Imp. Carbon-fiber Leg | -7/Factory | Scanalyzed Imp. Light Armor Plating | -7/Factory | Scanalyzed Robot Schematics ------------------ None Fabricated ------------ Nothing Alien Tech Used ----------------- None Achievements -------------- None Challenges ------------ None Game ------ Seed PointContainmentAccelerator Manual? 0 Play Time 00:45:57 Cumulative 123.2 hours Start 2022.05.30 @ 14:42:54 End 2022.06.01 @ 10:36:18 Sessions 3 Manual Loads 0 Difficulty Rogue Special Mode None Game No. 152 Rogue 152 Adventurer 0 Explorer 0 Win Type - Total 0 Types 0/0/0/0/0/0/0/0/0 Lore% 41 Gallery% 45 Achievement% 33 Wizard Run 0 Options --------- ASCII 0 Keyboard 1 Movement Vi Keybinds 0 Fullscreen 0 Font 20/SmallcapsGlow Map View 76x50 Tactical HUD 1 Map Filters NONE Filters NONE Steam 1 RUN: 5d3b890d-b446-4d24-bd8d-00357b0564f2